fUST/lending_fUST_20240903
["ID","MTS","AMOUNT","RATE_DAILY","PERIOD"]
[337002013,1725299511464,-824.68,0.00054246,120]
[337002014,1725299511473,-592.45,0.00054246,120]
[337002015,1725299511482,-2165.33,0.00054246,120]
[337002016,1725299511492,-500.0,0.00054246,7]
[337002017,1725299511501,-801.11,0.00054246,120]
[337002018,1725299511510,-6010.24,0.00054246,120]
[337002019,1725299511519,-2597.09,0.00054246,120]
[337002020,1725299511529,-1197.24,0.00054246,120]
[337002021,1725299511538,-500.0,0.00054246,120]
[337002022,1725299511548,-725.84,0.00054246,120]
[337002023,1725299511557,-509.19,0.00054246,120]
[337002024,1725299511566,-500.0,0.00054246,120]
[337002025,1725299511576,-768.36,0.00054246,120]
[337002026,1725299511586,-500.0,0.00054246,120]
[337002027,1725299511598,-1224.14,0.00054246,120]
[337002028,1725299511608,-601.31,0.00054246,120]
[337002029,1725299511617,-555.15,0.00054246,120]
[337002030,1725299511627,-541.45,0.00054246,120]
[337002031,1725299511636,-823.62,0.00054246,120]
[337002032,1725299511645,-4513.12,0.00054246,120]
[337002033,1725299511655,-824.48,0.00054246,120]
[337002034,1725299511664,-500.0,0.00054246,120]
[337002035,1725299511673,-635.65043174,0.00054246,120]
[337002036,1725299511682,-513.66,0.00054246,120]
[337002037,1725299511691,-634.52,0.00054246,120]
[337002038,1725299511701,-500.0,0.00054246,120]
[337002039,1725299511711,-2265.21,0.00054246,120]
[337002040,1725299511723,-611.87,0.00054246,120]
[337002041,1725299511733,-725.61,0.00054246,120]
[337002042,1725299511743,-500.68,0.00054246,120]
[337002043,1725299511754,-1603.88,0.00054246,120]
[337002044,1725299511763,-500.0,0.00054246,120]
[337002045,1725299511775,-2208.45,0.00054246,120]
[337002046,1725299511784,-1295.36,0.00054246,120]
[337002047,1725299511793,-458.044,0.00054246,120]
[337002048,1725299511804,-852.54,0.00054246,120]
[337002049,1725299511814,-2684.25,0.00054246,120]
[337002050,1725299511825,-371.74,0.00054246,120]
[337002051,1725299511834,-760.47,0.00054246,120]
[337002052,1725299511843,-2593.6,0.00054246,120]
[337002053,1725299511853,-1684.55,0.00054246,120]
[337002054,1725299511863,-1404.31,0.00054246,120]
[337002055,1725299511872,-1223.0,0.0005427,78]
[337002056,1725299511881,-500000.0,0.0005444,30]
[337002057,1725299511890,-2155.79,0.000546,30]
[337002058,1725299511900,-11015.91419097,0.000547,120]
[337002059,1725299511909,-923.16078325,0.000547,120]
[337002060,1725299511918,-503.81464257,0.00054736,60]
[337002061,1725299511928,-500.0,0.00054757,60]
[337002062,1725299511937,-165000.0,0.0005479,120]
[337002063,1725299511947,-588.33,0.00054794,120]
[337002064,1725299511957,-500.0,0.00054794,120]
[337002065,1725299511967,-1913.8,0.00054794,120]
[337002066,1725299511977,-520.83,0.00054794,120]
[337002067,1725299511987,-796.73,0.00054794,120]
[337002068,1725299511996,-529.6,0.00054794,120]
[337002069,1725299512006,-500.0,0.00054794,120]
[337002070,1725299512016,-197.80335752,0.00054794,120]
[337002071,1725299512026,-500.0,0.00054794,120]
[337002072,1725299512036,-606.46,0.00054794,120]
[337002073,1725299512045,-212.68,0.00054794,120]
[337002074,1725299512055,-509.34,0.00054794,120]
[337002075,1725299512064,-865.46,0.00054794,120]
[337002076,1725299512074,-1000.49,0.00054794,120]
[337002077,1725299512084,-1160.3,0.00054794,120]
[337002078,1725299512094,-619.14,0.00054794,120]
[337002079,1725299512105,-1000.0,0.00054794,120]
[337002080,1725299512116,-1000.0,0.00054794,120]
[337002081,1725299512126,-1000.0,0.00054794,120]
[337002082,1725299512135,-1000.0,0.00054794,120]
[337002083,1725299512145,-1000.0,0.00054794,120]
[337002084,1725299512155,-1000.0,0.00054794,120]
[337002085,1725299512164,-1000.0,0.00054794,120]
[337002086,1725299512174,-1000.0,0.00054794,120]
[337002087,1725299512183,-1000.0,0.00054794,120]
[337002088,1725299512193,-1000.0,0.00054794,120]
[337002089,1725299512203,-282.45,0.00054794,120]
[337002090,1725299512213,-1000.0,0.00054794,120]
[337002091,1725299512223,-1000.0,0.00054794,120]
[337002092,1725299512233,-1000.0,0.00054794,120]
[337002093,1725299512243,-1000.0,0.00054794,120]
[337002094,1725299512253,-1000.0,0.00054794,120]
[337002095,1725299512263,-1248.91,0.00054794,120]
[337002096,1725299512273,-155.73,0.00054794,120]
[337002097,1725299512283,-762.67,0.00054794,120]
[337002098,1725299512294,-500.0,0.00054794,120]
[337002099,1725299512303,-500.0,0.00054794,120]
[337002100,1725299512312,-505.46,0.00054794,120]
[337002101,1725299512323,-556.23,0.00054794,120]
[337002102,1725299512333,-729.65,0.00054794,120]
[337002103,1725299512343,-500.0,0.00054794,120]
[337002104,1725299512359,-571.48,0.00054794,120]
[337002105,1725299512370,-835.83,0.00054794,120]
[337002106,1725299512379,-587.13,0.00054794,30]
[337002107,1725299512388,-779.61,0.00054794,120]
[337002108,1725299512398,-1042.33,0.00054794,120]
[337002109,1725299512407,-534.73182457,0.00054794,120]
[337002110,1725299512417,-500.0,0.00054794,120]
[337002111,1725299512427,-562.87,0.00054794,120]
[337002112,1725299512436,-620.6,0.00054794,120]
[337002113,1725299512446,-1378.84,0.00054794,120]
[337002114,1725299512455,-1685.12,0.00054794,120]
[337002115,1725299512465,-807.99,0.00054794,120]
[337002116,1725299512475,-2400.57,0.00054794,120]
[337002117,1725299512485,-2683.59,0.00054794,120]
[337002118,1725299512494,-9812.96,0.00054794,120]
[337002119,1725299512504,-559.89,0.00054794,21]
[337002120,1725299512513,-1849.02,0.00054794,2]
[337002121,1725299512524,-1032.68,0.00054794,120]
[337002122,1725299512534,-1101.48,0.00054794,120]
[337002123,1725299512544,-500.0,0.00054794,120]
[337002124,1725299512555,-581.24,0.00054794,120]
[337002125,1725299512564,-564.09,0.00054794,120]
[337002126,1725299512574,-1006.75,0.00054794,120]
[337002127,1725299512583,-824.68,0.00054794,120]
[337002128,1725299512594,-592.45,0.00054794,120]
[337002129,1725299512606,-2165.33,0.00054794,120]
[337002130,1725299512615,-500.0,0.00054794,7]
[337002131,1725299512624,-801.11,0.00054794,120]
[337002132,1725299512634,-6010.24,0.00054794,120]
[337002133,1725299512643,-2597.09,0.00054794,120]
[337002134,1725299512653,-1197.24,0.00054794,120]
[337002135,1725299512663,-500.0,0.00054794,120]
[337002136,1725299512672,-725.84,0.00054794,120]
[337002137,1725299512682,-509.19,0.00054794,120]
[337002138,1725299512691,-500.0,0.00054794,120]
[337002139,1725299512701,-768.36,0.00054794,120]
[337002140,1725299512712,-553.66227182,0.00054794,120]
[337002141,1725299512723,-1224.14,0.00054794,120]
[337002142,1725299512733,-601.31,0.00054794,120]
[337002143,1725299512742,-555.15,0.00054794,120]
[337002144,1725299512752,-541.45,0.00054794,120]
[337002145,1725299512762,-823.62,0.00054794,120]
[337002146,1725299512772,-4513.12,0.00054794,120]
[337002147,1725299512782,-824.48,0.00054794,120]
[337002148,1725299512794,-500.0,0.00054794,120]
[337002149,1725299512804,-513.66,0.00054794,120]
[337002150,1725299512813,-634.52,0.00054794,120]
[337002151,1725299512823,-268.21,0.00054794,120]
[337002152,1725299512832,-2265.21,0.00054794,120]
[337002153,1725299512842,-611.87,0.00054794,120]
[337002154,1725299512853,-725.61,0.00054794,120]
[337002155,1725299512863,-500.68,0.00054794,120]
[337002156,1725299512872,-1603.88,0.00054794,120]
[337002157,1725299512883,-500.0,0.00054794,120]
[337002158,1725299512893,-2208.45,0.00054794,120]
[337002159,1725299512903,-1295.36,0.00054794,120]
[337002160,1725299512912,-852.54,0.00054794,120]
[337002161,1725299512921,-2684.25,0.00054794,120]
[337002162,1725299512930,-760.47,0.00054794,120]
[337002163,1725299512940,-2593.6,0.00054794,120]
[337002164,1725299512949,-1684.55,0.00054794,120]
[337002165,1725299512959,-500.0,0.00054794,120]
[337002166,1725299512968,-500.0,0.00054794,120]
[337002167,1725299512978,-500.0,0.00054794,120]
[337002168,1725299512987,-500.0,0.00054794,120]
[337002169,1725299512997,-500.0,0.00054794,120]
[337002170,1725299513007,-500.0,0.00054794,120]
[337002171,1725299513016,-500.0,0.00054794,120]
[337002172,1725299513026,-500.0,0.00054794,120]
[337002173,1725299513036,-1939.47413468,0.00054795,120]
[337002174,1725299513045,-1939.47413468,0.00054795,120]
[337002175,1725299513054,-1939.47413468,0.00054795,120]
[337002176,1725299513063,-1939.47413468,0.00054795,120]
[337002177,1725299513072,-1939.47413468,0.00054795,120]
[337002178,1725299513082,-1939.47413468,0.00054795,120]
[337002179,1725299513092,-1939.47413468,0.00054795,120]
[337002180,1725299513103,-1939.47413468,0.00054795,120]
[337002181,1725299513113,-1939.47413468,0.00054795,120]
[337002182,1725299513123,-1939.47413468,0.00054795,120]
[337002183,1725299513134,-1939.47413468,0.00054795,120]
[337002184,1725299513145,-1939.47413468,0.00054795,120]
[337002185,1725299513156,-1939.47413468,0.00054795,120]
[337002186,1725299513166,-1939.47413468,0.00054795,120]
[337002187,1725299513175,-1939.47413468,0.00054795,120]
[337002188,1725299513185,-1939.47413468,0.00054795,120]
[337002189,1725299513194,-1939.47413468,0.00054795,120]
[337002190,1725299513204,-1939.47413468,0.00054795,120]
[337002191,1725299513213,-1939.47413468,0.00054795,120]
[337002192,1725299513224,-1939.47413468,0.00054795,120]
[337002193,1725299513234,-1939.47413468,0.00054795,120]
[337002194,1725299513244,-1939.47413468,0.00054795,120]
[337002195,1725299513253,-1939.47413468,0.00054795,120]
[337002196,1725299513263,-1939.47413468,0.00054795,120]
[337002197,1725299513272,-1939.47413468,0.00054795,120]
[337002198,1725299513281,-1939.47413468,0.00054795,120]
[337002199,1725299513290,-1939.47413468,0.00054795,120]
[337002200,1725299513299,-1939.47413468,0.00054795,120]
[337002201,1725299513308,-1939.47413468,0.00054795,120]
[337002202,1725299513318,-1939.47413468,0.00054795,120]
[337002203,1725299513327,-1939.47413468,0.00054795,120]
[337002204,1725299513337,-1939.47413468,0.00054795,120]
[337002205,1725299513347,-1939.47413468,0.00054795,120]
[337002206,1725299513361,-1939.47413468,0.00054795,120]
[337002207,1725299513370,-1939.47413468,0.00054795,120]
[337002208,1725299513380,-1939.47413468,0.00054795,120]
[337002209,1725299513389,-1939.47413468,0.00054795,120]
[337002210,1725299513399,-1939.47413468,0.00054795,120]
[337002211,1725299513409,-1939.47413468,0.00054795,120]
[337002212,1725299513419,-1939.47413468,0.00054795,120]
[337002213,1725299513430,-1939.47413468,0.00054795,120]
[337002214,1725299513441,-1939.47413468,0.00054795,120]
[337002215,1725299513451,-1939.47413468,0.00054795,120]
[337002216,1725299513462,-1939.47413468,0.00054795,120]
[337002217,1725299513472,-1939.47413468,0.00054795,120]
[337002218,1725299513482,-1939.47413468,0.00054795,120]
[337002219,1725299513491,-1939.47413468,0.00054795,120]
[337002220,1725299513501,-1939.47413468,0.00054795,120]
[337002221,1725299513510,-1939.47413468,0.00054795,120]
[337002222,1725299513520,-266.277019,0.00054852,120]
[337002223,1725299513530,-2000.0,0.00055,120]
[337002224,1725299513540,-500.0,0.00055,120]
[337002225,1725299513551,-7816.5359376,0.00055,120]
[337002226,1725299513561,-150.0,0.00055105,120]
[337002227,1725299513571,-588.33,0.00055342,120]
[337002228,1725299513582,-500.0,0.00055342,120]
[337002229,1725299513592,-1913.8,0.00055342,120]
[337002230,1725299513613,-520.83,0.00055342,120]
[337002231,1725299513623,-796.73,0.00055342,120]
[337002232,1725299513634,-529.6,0.00055342,120]
[337002233,1725299513644,-500.0,0.00055342,120]
[337002234,1725299513655,-161.77,0.00055342,120]
[337002235,1725299513665,-606.46,0.00055342,120]
[337002236,1725299513674,-509.34,0.00055342,120]
[337002237,1725299513685,-865.46,0.00055342,120]
[337002238,1725299513694,-1000.49,0.00055342,120]
[337002239,1725299513705,-1160.3,0.00055342,120]
[337002240,1725299513718,-619.14,0.00055342,120]
[337002241,1725299513729,-1248.91,0.00055342,120]
[337002242,1725299513739,-762.67,0.00055342,120]
[337002243,1725299513750,-503.34693228,0.00055342,120]
[337002244,1725299513759,-453.95,0.00055342,120]
[337002245,1725299513769,-505.46,0.00055342,120]
[337002246,1725299513779,-729.65,0.00055342,120]
[337002247,1725299513789,-425.06,0.00055342,120]
[337002248,1725299513802,-571.48,0.00055342,120]
[337002249,1725299513812,-835.83,0.00055342,120]
[337002250,1725299513822,-587.13,0.00055342,30]
[337002251,1725299513832,-779.61,0.00055342,120]
[337002252,1725299513841,-1042.33,0.00055342,120]
[337002253,1725299513857,-570.68,0.00055342,120]
[337002254,1725299513867,-562.87,0.00055342,120]
[337002255,1725299513877,-620.6,0.00055342,120]
[337002256,1725299513887,-1378.84,0.00055342,120]
[337002257,1725299513897,-1685.12,0.00055342,120]
[337002258,1725299513906,-807.99,0.00055342,120]
[337002259,1725299513916,-2400.57,0.00055342,120]
[337002260,1725299513927,-2683.59,0.00055342,120]
[337002261,1725299513938,-9812.96,0.00055342,120]
[337002262,1725299513948,-559.89,0.00055342,21]
[337002263,1725299513958,-1849.02,0.00055342,2]
[337002264,1725299513968,-1032.68,0.00055342,120]
[337002265,1725299513978,-1101.48,0.00055342,120]
[337002266,1725299513988,-338.57,0.00055342,120]
[337002267,1725299513997,-581.24,0.00055342,120]
[337002268,1725299514146,-1006.75,0.00055342,120]
[337002269,1725299514156,-564.09,0.00055342,120]
[337002270,1725299514166,-824.68,0.00055342,120]
[337002271,1725299514175,-592.45,0.00055342,120]
[337002272,1725299514184,-2165.33,0.00055342,120]
[337002273,1725299514194,-333.0,0.00055342,7]
[337002274,1725299514203,-801.11,0.00055342,120]
[337002275,1725299514213,-6010.24,0.00055342,120]
[337002276,1725299514223,-2597.09,0.00055342,120]
[337002277,1725299514232,-1197.24,0.00055342,120]
[337002278,1725299514242,-578.9,0.00055342,120]
[337002279,1725299514253,-725.84,0.00055342,120]
[337002280,1725299514263,-509.19,0.00055342,120]
[337002281,1725299514272,-500.0,0.00055342,120]
[337002282,1725299514282,-768.36,0.00055342,120]
[337002283,1725299514291,-1224.14,0.00055342,120]
[337002284,1725299514301,-601.31,0.00055342,120]
[337002285,1725299514311,-555.15,0.00055342,120]
[337002286,1725299514320,-541.45,0.00055342,120]
[337002287,1725299514329,-823.62,0.00055342,120]
[337002288,1725299514339,-4513.12,0.00055342,120]
[337002289,1725299514348,-255.19583097,0.00055342,120]
[337002290,1725299514362,-824.48,0.00055342,120]
[337002291,1725299514371,-513.66,0.00055342,120]
[337002292,1725299514381,-634.52,0.00055342,120]
[337002293,1725299514391,-2265.21,0.00055342,120]
[337002294,1725299514401,-611.87,0.00055342,120]
[337002295,1725299514411,-725.61,0.00055342,120]
[337002296,1725299514421,-500.68,0.00055342,120]
[337002297,1725299514431,-1603.88,0.00055342,120]
[337002298,1725299514441,-500.0,0.00055342,120]
[337002299,1725299514451,-2208.45,0.00055342,120]
[337002300,1725299514461,-1295.36,0.00055342,120]
[337002301,1725299514471,-852.54,0.00055342,120]
[337002302,1725299514480,-2684.25,0.00055342,120]
[337002303,1725299514490,-760.47,0.00055342,120]
[337002304,1725299514501,-2593.6,0.00055342,120]
[337002305,1725299514511,-1684.55,0.00055342,120]
[337002306,1725299514521,-150.0,0.00055784,120]
[337002307,1725299514533,-523.0,0.00055784,120]
[337002308,1725299514544,-588.33,0.0005589,120]
[337002309,1725299514554,-500.0,0.0005589,120]
[337002310,1725299514564,-1913.8,0.0005589,120]
[337002311,1725299514574,-520.83,0.0005589,120]
[337002312,1725299514583,-796.73,0.0005589,120]
[337002313,1725299514594,-529.6,0.0005589,120]
[337002314,1725299514608,-500.0,0.0005589,120]
[337002315,1725299514618,-606.46,0.0005589,120]
[337002316,1725299514628,-509.34,0.0005589,120]
[337002317,1725299514638,-865.46,0.0005589,120]
[337002318,1725299514648,-1000.49,0.0005589,120]
[337002319,1725299514658,-1160.3,0.0005589,120]
[337002320,1725299514668,-619.14,0.0005589,120]
[337002321,1725299514678,-1248.91,0.0005589,120]
[337002322,1725299514688,-762.67,0.0005589,120]
[337002323,1725299514697,-505.46,0.0005589,120]
[337002324,1725299514707,-729.65,0.0005589,120]
[337002325,1725299514718,-571.48,0.0005589,120]
[337002326,1725299514729,-835.83,0.0005589,120]
[337002327,1725299514739,-587.13,0.0005589,30]
[337002328,1725299514748,-779.61,0.0005589,120]
[337002329,1725299514759,-1042.33,0.0005589,120]
[337002330,1725299514768,-562.87,0.0005589,120]
[337002331,1725299514778,-620.6,0.0005589,120]
[337002332,1725299514787,-1378.84,0.0005589,120]
[337002333,1725299514799,-1685.12,0.0005589,120]
[337002334,1725299514809,-807.99,0.0005589,120]
[337002335,1725299514819,-2400.57,0.0005589,120]
[337002336,1725299514830,-2683.59,0.0005589,120]
[337002337,1725299514840,-9812.96,0.0005589,120]
[337002338,1725299514851,-559.89,0.0005589,21]
[337002339,1725299514862,-1849.02,0.0005589,2]
[337002340,1725299514872,-1032.68,0.0005589,120]
[337002341,1725299514882,-1101.48,0.0005589,120]
[337002342,1725299514892,-581.24,0.0005589,120]
[337002343,1725299514901,-1006.75,0.0005589,120]
[337002344,1725299514911,-564.09,0.0005589,120]
[337002345,1725299514920,-824.68,0.0005589,120]
[337002346,1725299514929,-592.45,0.0005589,120]
[337002347,1725299514939,-2165.33,0.0005589,120]
[337002348,1725299514948,-801.11,0.0005589,120]
[337002349,1725299514958,-6010.24,0.0005589,120]
[337002350,1725299514968,-2597.09,0.0005589,120]
[337002351,1725299514977,-1197.24,0.0005589,120]
[337002352,1725299514987,-725.84,0.0005589,120]
[337002353,1725299514996,-509.19,0.0005589,120]
[337002354,1725299515006,-395.69,0.0005589,120]
[337002355,1725299515016,-768.36,0.0005589,120]
[337002356,1725299515025,-1224.14,0.0005589,120]
[337002357,1725299515035,-601.31,0.0005589,120]
[337002358,1725299515044,-555.15,0.0005589,120]
[337002359,1725299515054,-541.45,0.0005589,120]
[337002360,1725299515063,-823.62,0.0005589,120]
[337002361,1725299515073,-4513.12,0.0005589,120]
[337002362,1725299515082,-824.48,0.0005589,120]
[337002363,1725299515092,-513.66,0.0005589,120]
[337002364,1725299515102,-634.52,0.0005589,120]
[337002365,1725299515111,-2265.21,0.0005589,120]
[337002366,1725299515121,-611.87,0.0005589,120]
[337002367,1725299515132,-725.61,0.0005589,120]
[337002368,1725299515144,-500.68,0.0005589,120]
[337002369,1725299515154,-1603.88,0.0005589,120]
[337002370,1725299515165,-594.81,0.0005589,120]
[337002371,1725299515174,-2208.45,0.0005589,120]
[337002372,1725299515184,-1295.36,0.0005589,120]
[337002373,1725299515194,-852.54,0.0005589,120]
[337002374,1725299515204,-2684.25,0.0005589,120]
[337002375,1725299515213,-760.47,0.0005589,120]
[337002376,1725299515223,-2593.6,0.0005589,120]
[337002377,1725299515232,-1684.55,0.0005589,120]
[337002378,1725299515242,-588.56,0.00056438,120]
[337002379,1725299515251,-150.66,0.00056438,120]
[337002380,1725299515261,-1913.97629751,0.00056438,120]
[337002381,1725299515272,-520.99263059,0.00056438,120]
[337002382,1725299515282,-796.91191768,0.00056438,120]
[337002383,1725299515291,-529.83049684,0.00056438,120]
[337002384,1725299515301,-167.54829331,0.00056438,120]
[337002385,1725299515311,-606.58,0.00056438,120]
[337002386,1725299515321,-509.39400161,0.00056438,120]
[337002387,1725299515330,-865.68121088,0.00056438,120]
[337002388,1725299515341,-1000.69,0.00056438,120]
[337002389,1725299515350,-1160.51,0.00056438,120]
[337002390,1725299515363,-619.37820762,0.00056438,120]
[337002391,1725299515382,-1249.138307,0.00056438,120]
[337002392,1725299515392,-762.83,0.00056438,120]
[337002393,1725299515401,-505.46328941,0.00056438,120]
[337002394,1725299515410,-729.71,0.00056438,120]
[337002395,1725299515420,-571.59,0.00056438,120]
[337002396,1725299515430,-835.87268375,0.00056438,120]
[337002397,1725299515439,-587.22,0.00056438,30]
[337002398,1725299515449,-779.66174655,0.00056438,120]
[337002399,1725299515459,-1042.34622002,0.00056438,120]
[337002400,1725299515469,-563.07,0.00056438,120]
[337002401,1725299515478,-620.83121212,0.00056438,120]
[337002402,1725299515487,-1378.99,0.00056438,120]
[337002403,1725299515497,-1685.14189102,0.00056438,120]
[337002404,1725299515506,-808.18,0.00056438,120]
[337002405,1725299515515,-2400.68181194,0.00056438,120]
[337002406,1725299515525,-9813.12727102,0.00056438,120]
[337002407,1725299515535,-2683.79614295,0.00056438,120]
[337002408,1725299515545,-560.06,0.00056438,21]
[337002409,1725299515554,-1849.11019312,0.00056438,2]
[337002410,1725299515564,-1032.88,0.00056438,120]
[337002411,1725299515575,-1101.51,0.00056438,120]
[337002412,1725299515584,-581.34267296,0.00056438,120]
[337002413,1725299515594,-564.12,0.00056438,120]
[337002414,1725299515603,-1006.96,0.00056438,120]
[337002415,1725299515612,-824.7346881,0.00056438,120]
[337002416,1725299515622,-592.65,0.00056438,120]
[337002417,1725299515632,-2165.36400923,0.00056438,120]
[337002418,1725299515642,-801.34465042,0.00056438,120]
[337002419,1725299515652,-6010.31795154,0.00056438,120]
[337002420,1725299515664,-2597.16282022,0.00056438,120]
[337002421,1725299515674,-1197.41459008,0.00056438,120]
[337002422,1725299515690,-725.97,0.00056438,120]
[337002423,1725299515706,-509.32208337,0.00056438,120]
[337002424,1725299515724,-768.42,0.00056438,120]
[337002425,1725299515739,-1224.16952769,0.00056438,120]
[337002426,1725299515756,-601.34,0.00056438,120]
[337002427,1725299515772,-555.18,0.00056438,120]
[337002428,1725299515786,-541.57,0.00056438,120]
[337002429,1725299515805,-823.85,0.00056438,120]
[337002430,1725299515820,-4513.27816285,0.00056438,120]
[337002431,1725299515833,-824.69,0.00056438,120]
[337002432,1725299515849,-513.68193435,0.00056438,120]
[337002433,1725299515874,-634.61327696,0.00056438,120]
[337002434,1725299515886,-2265.43619079,0.00056438,120]
[337002435,1725299515899,-611.93,0.00056438,120]
[337002436,1725299515913,-725.73143689,0.00056438,120]
[337002437,1725299515927,-500.8,0.00056438,120]
[337002438,1725299515943,-1604.10801681,0.00056438,120]
[337002439,1725299515959,-2208.66391276,0.00056438,120]
[337002440,1725299515971,-1295.58225251,0.00056438,120]
[337002441,1725299515982,-852.63,0.00056438,120]
[337002442,1725299515995,-2684.43,0.00056438,120]
[337002443,1725299516010,-760.55149401,0.00056438,120]
[337002444,1725299516021,-2593.68,0.00056438,120]
[337002445,1725299516037,-1684.6,0.00056438,120]
[337002446,1725299516049,-285.205674,0.00056929,120]
[337002447,1725299516063,-1625.0,0.00057534,120]
[337002448,1725299516075,-520.146,0.00058784,120]
[337002449,1725299516087,-50000.0,0.00059863,20]
[337002450,1725299516100,-500.0,0.00059899,120]
[337002451,1725299516123,-266.277019,0.00059986,120]
[337002452,1725299516135,-488.0,0.0006,120]
[337002453,1725299516148,-478.0,0.0006,120]
[337002454,1725299516160,-500.0,0.0006,120]
[337002455,1725299516173,-2000.0,0.0006,120]
[337002456,1725299516185,-150.0,0.0006,120]
[337002457,1725299516198,-1000.0,0.0006,120]
[337002458,1725299516211,-1625.0,0.00060273,120]
[337002459,1725299516224,-150.0,0.00061,120]
[337002460,1725299516236,-500.0,0.00061055,120]
[337002461,1725299516249,-285.205674,0.00061932,120]
[337002462,1725299516263,-200.0,0.00062,120]
[337002463,1725299516276,-1625.0,0.00063013,120]
[337002464,1725299516289,-3852.1551977,0.00064776,28]
[337002465,1725299516301,-498.0,0.00065,120]
[337002466,1725299516314,-2000.0,0.00065,120]
[337002467,1725299516327,-266.277019,0.00065119,120]
[337002468,1725299516340,-402.7,0.000652,30]
[337002469,1725299516356,-19837.12,0.000652,30]
[337002470,1725299516369,-1625.0,0.00065753,120]
[337002471,1725299516382,-183.0,0.00065753,120]
[337002472,1725299516394,-50000.0,0.00066,120]
[337002473,1725299516407,-285.205674,0.00066936,120]
[337002474,1725299516418,-1625.0,0.00068493,120]
[337002475,1725299516430,-500.0,0.00069,120]
[337002476,1725299516442,-212.26,0.00069,30]
[337002477,1725299516453,-3000.0,0.00069,120]
[337002478,1725299516465,-3000.0,0.0006901,120]
[337002479,1725299516477,-3000.0,0.0006902,120]
[337002480,1725299516489,-3000.0,0.0006903,120]
[337002481,1725299516501,-5492.411302,0.0006904,120]
[337002482,1725299516512,-1330.10321281,0.0007,120]
[337002483,1725299516524,-3000.0,0.0007,120]
[337002484,1725299516537,-266.277019,0.00070252,120]
[337002485,1725299516549,-1625.36,0.00071,30]
[337002486,1725299516561,-1625.0,0.00071232,120]
[337002487,1725299516574,-285.205674,0.0007194,120]
[337002488,1725299516586,-2224.55451416,0.00072426,2]
[337002489,1725299516599,-1999.789999,0.000725,120]
[337002490,1725299516616,-1625.0,0.00073972,120]
[337002491,1725299516628,-4000.0,0.000745,120]
[337002492,1725299516640,-2000.0,0.00075,120]
[337002493,1725299516651,-2000.0,0.00075,120]
[337002494,1725299516663,-266.277019,0.00075386,120]
[337002495,1725299516675,-2000.0,0.000755,120]
[337002496,1725299516686,-500.0,0.00076,120]
[337002497,1725299516699,-1625.0,0.00076712,120]
[337002498,1725299516711,-285.205674,0.00076943,120]
[337002499,1725299516726,-402.71,0.00077,30]
[337002500,1725299516740,-238.06,0.00077,30]
[337002501,1725299516751,-19837.12,0.00077,30]
[337002502,1725299516764,-1625.0,0.00079452,120]
[337002503,1725299516776,-2000.0,0.000795,120]
[337002504,1725299516788,-2000.0,0.000795,120]
[337002505,1725299516800,-2000.0,0.000795,120]
[337002506,1725299516813,-3862.492281,0.0008,120]
[337002507,1725299516824,-1000.0,0.0008,120]
[337002508,1725299516837,-266.277019,0.00080519,120]
[337002509,1725299516849,-183.0,0.00080933,120]
[337002510,1725299516863,-1625.36,0.00081,30]
[337002511,1725299516874,-1625.36,0.00081,30]
[337002512,1725299516886,-3200.0,0.00081599,120]